bitfinex-derivatives/quotes_ETHF0:USTF0_20260209
["timestamp","ask_amount","ask_price","bid_price","bid_amount"]
[1770626075539,10.86910658,2041.2,2040.4,2.70892485]
[1770626075840,10.86910658,2041.2,2040.4,0.24526]
[1770626076045,10.86910658,2041.2,2040.0,2.46366485]
[1770626076239,10.86910658,2041.2,2039.9,0.00470735]
[1770626076440,10.86910658,2041.2,2040.1,2.40133186]
[1770626076640,10.86910658,2041.2,2040.2,0.24528]
[1770626077343,10.86910658,2041.2,2040.4,0.24526]
[1770626077543,10.86910658,2041.2,2040.4,2.57567945]
[1770626077744,10.86910658,2041.2,2040.4,8.60917945]
[1770626078141,0.00564913,2041.3,2040.6,2.51413396]
[1770626079437,10.87475571,2041.3,2040.6,2.51413396]
[1770626079639,0.00564913,2041.3,2040.8,3.09082564]
[1770626080035,0.00564913,2041.3,2040.8,0.24521]
[1770626080036,10.87475571,2041.3,2040.8,0.24521]
[1770626082342,0.00564913,2041.3,2040.8,2.91105782]
[1770626082742,10.87475571,2041.3,2040.8,0.24521]
[1770626082942,10.87475571,2041.3,2040.2,8.88141142]
[1770626083144,10.87475571,2041.3,2040.6,2.58677044]
[1770626083338,0.00564913,2041.3,2040.8,2.58677044]
[1770626084039,10.87475571,2041.3,2040.7,6.27778]
[1770626084243,10.87475571,2041.3,2040.7,0.24522]
[1770626084844,0.00564913,2041.3,2040.7,8.74067087]
[1770626085046,10.86910658,2041.8,2040.9,2.69490534]
[1770626085340,10.86910658,2041.8,2040.9,8.72693534]
[1770626085937,10.86910658,2041.8,2041.0,2.37809633]
[1770626086142,10.87483518,2041.8,2041.1,0.24518]
[1770626086345,10.87483518,2041.8,2041.1,2.62586637]
[1770626086547,0.0057286,2041.8,2041.1,2.62586637]
[1770626086743,10.8927904,2041.8,2041.1,0.24518]
[1770626087249,10.8927904,2041.8,2040.5,8.35885238]
[1770626087454,10.8870618,2041.6,2040.5,8.35885238]
[1770626088950,10.8870618,2041.4,2040.5,0.24524]
[1770626089248,10.8870618,2041.2,2040.3,0.24527]
[1770626089446,10.8870618,2041.2,2040.3,2.11252647]
[1770626089638,10.8870618,2041.2,2040.6,0.24523]
[1770626090845,10.8870618,2041.2,2040.0,0.2453]
[1770626091146,10.8870618,2041.2,2040.2,0.24528]
[1770626091444,10.8870618,2041.2,2040.3,1.700188]
[1770626091652,10.8870618,2041.2,2040.4,0.24526]
[1770626092351,5.65959137,2041.8,2040.7,0.24521]
[1770626092352,10.8870618,2041.4,2040.7,0.24521]
[1770626092950,10.8870618,2041.6,2040.9,0.2452]
[1770626093255,10.8870618,2041.6,2040.9,1.38768298]
[1770626093454,10.8870618,2041.6,2040.9,0.2452]
[1770626094051,10.8870618,2041.4,2040.0,7.3674873]
[1770626094256,10.8870618,2041.2,2040.3,0.24526]
[1770626094557,10.8870618,2041.2,2040.3,7.6118573]
[1770626095053,10.8870618,2041.2,2040.7,0.24522]
[1770626096156,10.8870618,2041.7,2040.7,2.19727988]
[1770626096349,10.8870618,2041.7,2041.0,6.2769]
[1770626098756,0.0057286,2041.8,2041.2,8.10678901]
[1770626099059,10.8927904,2041.8,2041.2,0.24516]
[1770626099261,10.8870618,2042.1,2041.2,8.03108085]
[1770626100256,10.8929279,2042.1,2041.2,8.03108085]
[1770626100453,10.8929279,2042.1,2041.2,0.24516]
[1770626101355,10.8870618,2041.9,2041.1,0.24517]
[1770626101557,10.8870618,2041.9,2041.1,2.06047751]
[1770626102061,10.8870618,2041.9,2041.3,0.24515]
[1770626102362,10.8870618,2041.9,2041.3,6.27596]
[1770626102558,10.8870618,2042.3,2041.6,8.5274125]
[1770626102754,10.8870618,2042.8,2041.9,0.24508]
[1770626102951,10.8870618,2042.8,2042.1,6.02832]
[1770626103262,10.8870618,2042.8,2042.2,6.27319]
[1770626103760,10.8870618,2043.1,2042.4,6.27252]
[1770626104155,10.8870618,2043.1,2042.4,8.44155425]
[1770626104662,10.8870618,2043.8,2042.6,6.2719]
[1770626104961,10.89237957,2043.8,2042.7,2.11269559]
[1770626105258,0.00531777,2043.8,2043.4,6.02439]
[1770626105459,10.8870618,2044.1,2043.2,6.27018]
[1770626105661,10.8870618,2044.1,2043.6,6.024]
[1770626105867,10.8870618,2044.8,2043.7,2.35852627]
[1770626106360,10.89219524,2044.8,2043.7,2.36221509]
[1770626106663,10.89219524,2044.8,2043.7,0.00368882]
[1770626107952,10.89219524,2044.8,2043.9,2.17313737]
[1770626108163,10.89219524,2044.8,2043.8,0.24485]
[1770626108359,10.89219524,2044.8,2043.9,2.17551106]
[1770626108556,10.89219524,2044.8,2043.8,0.24485]
[1770626108963,10.89219524,2044.8,2043.7,0.00368882]
[1770626109363,10.89219524,2044.8,2043.8,6.02349]
[1770626109568,10.89219524,2044.8,2043.8,6.26834]
[1770626109757,10.89219524,2044.8,2043.9,1.54977226]
[1770626109958,10.89219524,2044.8,2043.8,0.24485]
[1770626110268,10.89219524,2044.8,2043.8,1.73395232]
[1770626110461,10.89219524,2044.8,2043.8,0.24485]
[1770626110666,10.89219524,2044.8,2043.7,0.00368882]
[1770626111766,10.89219524,2044.8,2043.7,0.871157]
[1770626111967,10.89219524,2044.8,2043.7,0.24854882]
[1770626112168,10.89219524,2044.8,2043.7,6.83744695]
[1770626112968,10.89219524,2044.8,2043.9,6.26802]
[1770626113267,10.89219524,2044.8,2043.9,0.24484]
[1770626114566,14.72527986,2044.8,2043.2,0.24492]
[1770626114863,17.1526618,2044.7,2042.8,0.37608011]
[1770626115066,10.8870618,2044.5,2043.0,0.24891848]
[1770626115259,9.89896762,2044.3,2042.9,0.24496]
[1770626115461,9.89896762,2044.3,2042.5,0.24501]
[1770626115661,9.89896762,2044.3,2042.5,6.27233]
[1770626115863,9.89896762,2044.3,2042.5,6.27582812]
[1770626116064,9.89896762,2044.3,2043.2,6.27007]
[1770626116363,9.89896762,2044.3,2043.4,0.24489]
[1770626116558,9.89440663,2044.6,2043.9,6.02307]
[1770626116765,9.89440663,2044.7,2044.1,0.24482]
[1770626116964,9.89440663,2044.7,2044.1,0.24925082]
[1770626118258,9.47292773,2045.3,2044.3,6.31350787]
[1770626118462,9.47292773,2045.3,2044.5,11.20400787]
[1770626118664,9.47292773,2045.3,2044.6,4.93789787]
[1770626119264,9.47742854,2045.3,2044.6,4.93789787]
[1770626119561,9.47742854,2045.3,2044.7,6.26553]
[1770626119763,0.00450081,2045.3,2044.7,0.24474]
[1770626120066,9.47292773,2045.6,2044.9,11.30841457]
[1770626120970,9.47292773,2045.5,2044.3,11.24979062]
[1770626121467,9.47292773,2045.4,2044.4,5.21853901]
[1770626121663,9.47292773,2045.4,2044.6,5.21853901]
[1770626121871,9.47640782,2045.6,2044.7,0.24474]
[1770626122065,14.36760782,2045.6,2044.7,0.24474]
[1770626122266,9.47292773,2045.5,2044.7,0.24474]
[1770626122772,9.47292773,2045.2,2044.7,0.24474]
[1770626123567,9.47292773,2045.1,2044.1,0.24925082]
[1770626123768,9.47292773,2045.1,2044.3,5.36828285]
[1770626123963,9.47292773,2045.1,2044.3,0.24479]
[1770626124168,9.47292773,2044.9,2044.1,0.00443082]
[1770626124573,9.47292773,2044.5,2044.1,0.00443082]
[1770626124873,9.47292773,2045.5,2044.2,0.2448]
[1770626125177,9.47292773,2045.0,2044.2,0.2448]
[1770626125376,9.47292773,2045.0,2043.6,10.89673227]
[1770626125570,9.47292773,2044.7,2043.6,10.89673227]
[1770626125766,9.47292773,2044.7,2043.7,5.12208309]
[1770626126068,9.47292773,2044.7,2043.8,11.33685466]
[1770626126269,0.00348009,2045.6,2044.0,11.33624466]
[1770626126470,9.47292773,2045.3,2044.2,0.2448]
[1770626126874,9.47292773,2045.1,2044.2,6.2671]
[1770626127474,9.47292773,2045.1,2044.2,10.79523214]
[1770626127770,9.47292773,2044.9,2044.2,0.2448]
[1770626128274,9.47292773,2044.4,2044.0,0.00477365]
[1770626128776,9.47292773,2045.3,2044.0,0.00477365]
[1770626128977,9.47292773,2045.0,2044.0,0.00477365]
[1770626129381,9.47292773,2044.7,2044.0,0.00477365]
[1770626129674,9.47292773,2045.3,2044.1,11.1135911]
[1770626130470,9.47292773,2045.2,2044.1,5.0910811]
[1770626130671,9.47292773,2045.0,2044.0,0.00477365]
[1770626130877,9.47292773,2044.9,2044.0,0.00477365]
[1770626131072,9.47292773,2044.9,2044.0,0.24959365]
[1770626131273,9.47292773,2044.9,2044.1,4.5913643]
[1770626131582,9.47292773,2044.9,2044.2,0.2448]
[1770626132581,9.47292773,2044.7,2044.2,0.2448]
[1770626132976,9.47292773,2045.3,2044.2,4.72686476]
[1770626133176,9.47292773,2045.2,2044.2,4.72686476]
[1770626133679,9.47292773,2045.2,2044.4,4.5420809]
[1770626133877,9.47292773,2045.0,2044.4,0.24478]
[1770626134885,14.36412773,2045.0,2044.4,0.24478]
[1770626135087,9.47292773,2044.9,2044.0,0.00477365]
[1770626135575,9.47292773,2044.9,2043.8,0.24484]
[1770626135779,9.47292773,2044.7,2043.8,0.24484]
[1770626135975,9.47292773,2044.7,2043.8,4.35805145]
[1770626136274,9.47292773,2044.7,2043.8,0.24484]
[1770626136473,9.47292773,2044.5,2043.8,0.24484]
[1770626136879,9.47292773,2044.2,2043.8,0.24951749]
[1770626137086,9.47292773,2044.2,2043.2,6.27013]
[1770626137287,9.47292773,2044.2,2043.4,0.2449]
[1770626137484,9.47292773,2044.2,2043.6,0.24488]
[1770626137993,9.47292773,2044.2,2043.6,0.24977419]
[1770626138186,9.47292773,2044.2,2043.0,10.27017434]
[1770626138393,9.47292773,2044.2,2043.4,0.2449]
[1770626138888,9.47292773,2044.0,2043.4,0.2449]
[1770626139186,9.47642728,2044.0,2043.4,0.2503208]
[1770626139482,9.47642728,2044.0,2043.6,3.81888529]
[1770626139483,0.00349955,2044.0,2043.6,3.81888529]
[1770626140288,0.00349955,2044.0,2043.6,3.77201335]
[1770626140786,0.00349955,2044.0,2043.6,0.24488]
[1770626140987,9.47642728,2044.0,2043.6,0.24488]
[1770626141187,0.00349955,2044.0,2043.6,3.65488571]
[1770626141696,9.47292773,2044.3,2043.6,3.65488571]
[1770626142097,9.47292773,2044.3,2043.6,9.67893571]
[1770626142495,9.47292773,2044.3,2043.8,0.24485]
[1770626142690,9.47770943,2044.3,2043.8,3.60850635]
[1770626142891,4.8959817,2044.3,2043.8,3.60850635]
[1770626143088,0.0047817,2044.3,2043.8,3.60850635]
[1770626144095,9.47292773,2044.2,2043.8,0.24485]
[1770626144598,14.36412773,2044.1,2043.8,0.24485]
[1770626144900,9.47292773,2044.0,2043.4,6.0299808]
[1770626145501,9.47292773,2044.0,2043.8,0.24485]
[1770626145994,14.36412773,2044.0,2043.4,0.0054208]
[1770626146395,8.92924065,2043.9,2043.4,0.0054208]
[1770626146905,13.82044065,2043.7,2043.4,0.0054208]
[1770626147099,13.82044065,2043.7,2043.2,0.24492]
[1770626147401,0.0047817,2044.3,2043.4,0.2449]
[1770626147402,8.93402235,2044.3,2043.4,0.2449]
[1770626147604,8.92924065,2044.0,2043.4,0.2449]
[1770626148102,4.8912,2043.8,2043.4,0.24954904]
[1770626148297,8.92924065,2044.0,2043.4,3.87063254]
[1770626148503,13.81501985,2043.9,2043.4,0.24954904]
[1770626148701,13.81501985,2043.9,2043.4,3.87063254]
[1770626149000,13.81501985,2043.9,2043.4,0.24954904]
[1770626149404,13.81501985,2043.9,2043.4,3.81500487]
[1770626149803,4.8857792,2043.9,2043.4,3.81500487]
[1770626150502,8.92924065,2044.1,2043.8,0.24485]
[1770626150802,8.93402235,2044.3,2043.8,0.24485]
[1770626151206,4.23670815,2044.1,2043.8,0.24485]
[1770626151605,4.23670815,2044.0,2043.8,0.24485]
[1770626151805,13.1659488,2044.0,2043.8,0.24485]
[1770626152006,13.1659488,2044.0,2043.4,0.00464904]
[1770626152703,13.1659488,2044.0,2043.4,3.71999539]
[1770626152907,8.93402235,2044.3,2043.8,0.24485]
[1770626153107,13.1707305,2044.3,2043.8,0.24485]
[1770626153505,13.1707305,2044.3,2043.8,3.97071702]
[1770626153700,8.92924065,2044.2,2043.8,0.24485]
[1770626153910,4.23670815,2044.0,2043.8,0.24485]
[1770626154209,8.92924065,2044.2,2043.8,0.24485]
[1770626154409,4.23670815,2044.1,2043.8,0.24485]
[1770626154707,13.1659488,2044.1,2043.8,0.24485]
[1770626155006,4.23670815,2044.1,2043.8,0.24485]
[1770626155210,8.92924065,2044.0,2043.8,0.24485]
[1770626155909,4.23670815,2043.9,2043.8,0.24485]
[1770626156112,8.93402235,2044.3,2043.8,0.24485]
[1770626156310,4.23670815,2044.1,2043.8,0.24485]
[1770626156613,3.74126815,2044.1,2043.8,3.83523998]
[1770626156812,3.74126815,2044.1,2043.8,0.24485]
[1770626157313,8.93402235,2044.3,2043.8,9.76335195]
[1770626157513,13.04546615,2044.8,2043.8,9.76335195]
[1770626157514,8.92924065,2044.8,2044.4,0.24478]
[1770626157809,8.92924065,2044.6,2043.4,3.74446099]
[1770626158016,8.92924065,2044.4,2043.4,3.74446099]
[1770626158312,8.93451996,2044.4,2043.9,0.24484]
[1770626158610,0.0047817,2044.3,2043.9,3.97060831]
[1770626159116,3.74126815,2044.3,2043.9,3.97060831]
[1770626159307,12.6705088,2044.3,2043.9,0.24484]
[1770626159610,3.74126815,2044.3,2043.9,3.98200906]
[1770626160214,0.00527931,2044.4,2043.9,3.98200906]
[1770626160413,8.92924065,2044.3,2043.9,0.24484]
[1770626160909,3.75132916,2044.4,2043.9,0.24484]
[1770626161111,3.75132916,2044.4,2043.9,3.88877579]
[1770626161316,8.92924065,2044.9,2044.3,0.24479]
[1770626161814,8.92924065,2045.1,2044.3,3.90976367]
[1770626162005,12.06155981,2045.1,2044.5,0.24477]
[1770626162205,3.13626604,2045.1,2044.7,3.9182]
[1770626162510,3.13626604,2045.1,2044.7,0.24474]
[1770626162511,8.92924065,2045.0,2044.7,0.24474]
[1770626162708,0.00394688,2045.1,2044.7,9.93888]
[1770626162906,0.00394688,2045.1,2044.9,0.24472]
[1770626162907,2.02712916,2045.0,2044.9,0.24472]
[1770626163108,10.95636981,2045.0,2044.2,16.0190249]
[1770626163316,8.92924065,2045.0,2044.2,10.29944986]
[1770626163713,8.92924065,2045.0,2044.3,4.27714986]
[1770626164111,2.02712916,2044.9,2044.3,4.28152789]
[1770626164615,8.92924065,2044.3,2043.7,10.01941549]
[1770626164816,8.92924065,2044.5,2043.8,4.45627344]
[1770626165219,2.02712916,2044.3,2043.9,4.48358005]
[1770626165720,10.95636981,2044.1,2043.6,4.72846005]
[1770626165911,8.92924065,2044.1,2043.6,0.24488]
[1770626166107,2.02712916,2043.9,2043.6,0.24488]
[1770626166312,10.95636981,2043.9,2043.6,0.24488]
[1770626166913,10.95636981,2043.9,2043.0,6.27078]
[1770626167118,10.95636981,2043.6,2043.0,6.27078]
[1770626167319,8.92924065,2043.6,2043.0,0.24494]
[1770626167518,40.8,2044.4,2043.0,0.24494]
[1770626167519,8.92924065,2044.3,2043.4,10.96390155]
[1770626167720,8.93507796,2044.3,2043.4,6.27582277]
[1770626168217,8.93507796,2044.3,2043.6,10.94972087]
[1770626168416,8.92924065,2044.8,2043.9,4.91988356]
[1770626168715,8.92924065,2044.8,2043.9,0.24483]
[1770626168920,8.92924065,2044.8,2044.2,6.26708]
[1770626169118,8.92924065,2045.0,2044.2,6.26708]
[1770626169317,8.93417059,2045.0,2044.2,0.2448]
[1770626169519,8.93417059,2045.0,2043.8,4.06678987]
[1770626170015,8.92924065,2044.8,2043.7,10.29416502]
[1770626170417,8.92924065,2044.8,2043.7,4.27044502]
[1770626171117,8.92924065,2044.8,2043.6,0.24487]
[1770626172217,8.92924065,2044.6,2043.6,0.24487]
[1770626174024,8.92924065,2044.4,2043.6,0.24487]
[1770626175018,8.92924065,2044.4,2043.4,0.00626277]
[1770626175224,8.92924065,2044.2,2043.4,0.00626277]
[1770626175620,8.92924065,2044.2,2043.0,0.24494]
[1770626175821,8.92924065,2044.2,2043.0,4.39010732]
[1770626176017,8.60120503,2043.9,2042.8,0.24497]
[1770626176217,8.60120503,2043.9,2043.0,10.41334823]
[1770626176418,8.60120503,2043.9,2043.1,4.14256823]
[1770626176614,8.60120503,2043.9,2043.1,4.14877844]
[1770626177226,8.60120503,2043.9,2043.1,0.00621021]
[1770626177723,8.60120503,2043.9,2043.2,4.26431972]
[1770626178322,8.56702728,2044.2,2043.5,4.01639448]
[1770626178624,8.56702728,2044.2,2043.1,0.00621021]
[1770626178625,8.56702728,2044.2,2043.6,0.24488]
[1770626178826,8.56702728,2044.2,2043.1,4.02260469]
[1770626179433,8.56702728,2044.2,2043.6,0.24488]
[1770626179927,8.56702728,2044.2,2043.1,4.26332007]
[1770626180128,8.56702728,2044.2,2043.1,4.5131008]
[1770626180326,8.56702728,2044.2,2043.4,4.75179059]
[1770626181823,8.56702728,2044.2,2043.4,0.2449]
[1770626182526,8.56702728,2044.4,2043.6,4.66314128]
[1770626183128,8.31613622,2044.4,2043.8,4.87351661]
[1770626183728,8.56702728,2044.7,2044.2,4.87346661]
[1770626183934,8.56702728,2044.7,2044.2,0.2448]
[1770626184531,8.56702728,2044.9,2044.2,10.85685492]
[1770626184730,8.56702728,2044.9,2044.4,10.85611492]
[1770626184930,8.31687497,2044.9,2044.4,4.83452492]
[1770626185236,0.00492994,2045.0,2044.4,10.85619492]
[1770626185432,0.00492994,2045.0,2044.6,5.02074189]
[1770626185632,0.00492994,2045.0,2044.6,11.04722538]
[1770626185633,9.94e-06,2045.0,2044.6,11.04722538]
[1770626185834,8.56702728,2045.6,2044.9,0.24472]
[1770626186030,8.56702728,2045.8,2045.2,4.99534328]
[1770626186638,8.56702728,2046.4,2045.4,4.99532328]
[1770626186835,8.57204795,2045.8,2045.4,0.24466]
[1770626187132,8.57204795,2045.8,2044.9,4.6303293]
[1770626187536,8.57204795,2045.8,2044.7,10.8958293]
[1770626187836,8.57204795,2045.8,2044.7,0.24473]
[1770626188028,8.57204795,2045.8,2044.8,4.59119766]
[1770626188243,8.57204795,2045.8,2044.7,10.85675766]
[1770626188534,8.57204795,2045.8,2045.1,0.24469]
[1770626188838,8.57204795,2045.8,2044.7,10.85676766]
[1770626189037,8.57204795,2045.8,2045.0,4.54254716]
[1770626189237,8.57204795,2045.8,2045.3,10.81445662]
[1770626189432,6.7e-07,2045.8,2045.6,4.55073662]
[1770626189738,8.56702728,2046.1,2045.6,4.55073662]
[1770626189932,8.56702728,2047.5,2046.4,0.24454]
[1770626190232,8.56702728,2047.3,2045.7,5.66393945]
[1770626190438,8.56702728,2047.3,2045.7,4.75427618]
[1770626190628,8.56702728,2047.1,2045.7,4.75857226]
[1770626191031,8.56702728,2046.7,2045.7,4.75857226]
[1770626191229,8.56702728,2046.7,2045.7,0.24891608]
[1770626191535,0.00445086,2047.3,2045.3,4.67157857]
[1770626191536,8.56702728,2046.1,2045.3,4.67157857]
[1770626192639,8.56702728,2046.1,2045.3,4.67712941]
[1770626193338,8.56702728,2046.1,2045.4,11.44988153]
[1770626193540,8.56702728,2046.8,2045.5,5.18653153]
[1770626193742,40.8,2046.9,2045.4,6.26335]
[1770626193743,8.56702728,2046.7,2045.7,5.18653153]
[1770626194438,8.56702728,2046.7,2045.9,5.14409448]
[1770626194835,8.56702728,2046.7,2046.0,0.24459]
[1770626195036,8.56702728,2047.1,2046.1,5.08797518]
[1770626195437,8.56702728,2047.1,2045.4,5.08797518]
[1770626195638,2.30794615,2046.8,2045.4,5.08797518]
[1770626195944,8.56702728,2046.7,2045.4,5.08797518]
[1770626196245,8.56702728,2046.7,2045.7,0.24463]
[1770626196632,8.56702728,2046.7,2046.0,0.24459]
[1770626196841,8.56702728,2046.7,2045.8,6.39723388]
[1770626197038,8.56702728,2046.5,2045.4,11.27795075]
[1770626197542,8.56702728,2046.5,2045.8,5.01451075]
[1770626197842,8.56702728,2046.8,2045.9,11.27639075]
[1770626198039,8.56702728,2046.8,2045.9,0.2446]
[1770626198243,8.56702728,2046.8,2045.4,4.97310384]
[1770626198444,8.56702728,2046.4,2045.4,4.97310384]
[1770626198638,8.56702728,2046.4,2045.5,0.24465]
[1770626199036,8.56702728,2046.0,2045.5,0.24465]
[1770626199245,8.56702728,2046.0,2045.3,0.00555084]
[1770626199443,8.56702728,2045.7,2045.3,0.00555084]
[1770626199745,8.57183437,2045.7,2045.3,0.00555084]
[1770626200945,10.87978052,2045.7,2045.3,0.00555084]
[1770626201552,2.31275324,2045.7,2045.3,0.00555084]
[1770626201751,0.00480709,2045.7,2045.3,4.88243112]
[1770626202052,0.00480709,2045.7,2045.4,5.08131903]
[1770626202243,8.56702728,2046.2,2045.4,6.26335]
[1770626202444,8.56702728,2046.2,2045.6,0.24464]
[1770626202949,8.56702728,2046.2,2045.6,5.04110648]
[1770626203150,0.00426527,2046.2,2045.7,4.79964342]
[1770626203849,0.00426527,2046.2,2045.9,4.79964342]
[1770626205041,7.56186808,2046.7,2045.9,4.79964342]
[1770626205542,3.11423072,2047.6,2046.3,0.24454]
[1770626205543,7.56186808,2047.0,2046.3,0.24454]
[1770626205747,7.56186808,2047.0,2046.0,6.38784026]
[1770626205948,7.56186808,2047.0,2045.8,10.68456672]
[1770626206254,7.56186808,2046.7,2045.8,10.68456672]
[1770626206646,7.56186808,2046.7,2046.3,0.24454]
[1770626207252,7.56186808,2046.4,2046.3,0.24454]
[1770626207452,7.56186808,2046.4,2045.5,5.12437285]
[1770626207649,7.56186808,2046.4,2045.7,0.24462]
[1770626207850,7.56186808,2046.4,2045.4,5.07865158]
[1770626208049,7.56186808,2046.4,2045.3,0.00555084]
[1770626208249,0.00611729,2047.0,2045.4,0.24466]
[1770626208250,7.56186808,2045.9,2045.4,0.24466]
[1770626208645,7.56186808,2045.6,2045.4,0.24466]
[1770626208847,7.56186808,2045.6,2045.3,0.00555084]
[1770626209353,9.86981423,2045.6,2045.3,0.00555084]
[1770626209544,2.30794615,2045.6,2045.4,0.24466]
[1770626209743,9.86981423,2045.6,2045.3,0.00555084]
[1770626210348,2.30794615,2045.6,2045.3,0.00555084]
[1770626210545,7.56186808,2046.8,2045.4,0.24466]
[1770626210749,7.56186808,2046.3,2045.4,0.24466]
[1770626210950,7.56186808,2046.3,2045.3,0.00555084]
[1770626211154,7.56186808,2045.7,2044.8,0.24472]
[1770626211753,7.56186808,2045.4,2044.2,5.11148928]
[1770626212154,7.56186808,2045.3,2044.2,5.11577025]
[1770626212355,7.56186808,2045.3,2044.3,5.33294438]
[1770626212857,7.56186808,2045.2,2044.3,5.33294438]
[1770626213058,7.56186808,2045.2,2044.3,11.35493438]
[1770626213254,7.56186808,2045.2,2044.4,5.0864225]
[1770626213456,7.56186808,2045.1,2044.3,0.24479]
[1770626213860,7.56549951,2045.4,2044.5,5.3311925]
[1770626214056,7.56186808,2045.2,2044.5,0.24477]
[1770626214453,7.56186808,2044.9,2044.5,0.24477]
[1770626214853,2.30794615,2045.0,2044.5,0.24477]
[1770626215056,7.56186808,2045.2,2044.6,5.00891344]
[1770626215456,0.00363143,2045.4,2044.7,11.15309483]
[1770626215656,0.00363143,2045.4,2044.8,4.88755483]
[1770626216159,7.56186808,2045.1,2044.7,0.24474]
[1770626216463,7.56186808,2045.1,2044.2,4.85687431]
[1770626216665,7.56186808,2045.0,2044.2,4.85687431]
[1770626217859,7.56186808,2044.8,2044.2,0.00428097]
[1770626218265,7.56186808,2044.4,2044.2,0.00428097]
[1770626218466,7.56186808,2044.4,2043.7,4.75664786]
[1770626219368,7.56186808,2044.4,2043.7,4.76256188]
[1770626219567,7.56186808,2044.4,2044.1,0.24481]
[1770626219764,9.86981423,2044.4,2043.7,4.76256188]
[1770626219967,7.56186808,2044.3,2043.7,0.00591402]
[1770626220169,7.56186808,2045.2,2044.1,4.7474543]
[1770626220364,40.8,2045.3,2044.2,4.9922543]
[1770626220365,7.56186808,2045.1,2044.2,4.9922543]
[1770626220560,7.56186808,2045.1,2044.2,0.2448]
[1770626220765,7.56186808,2045.1,2043.8,4.7474543]
[1770626220962,7.56186808,2044.4,2043.7,0.00591402]
[1770626221469,7.56186808,2044.4,2043.7,10.78201975]
[1770626221670,7.56186808,2044.7,2043.9,4.75236573]
[1770626221873,7.56186808,2044.7,2043.8,0.24485]
[1770626222069,7.56186808,2044.7,2043.9,10.98648952]
[1770626222470,2.30794615,2044.6,2043.9,10.98648952]
[1770626223175,9.86981423,2044.6,2044.1,10.98741992]
[1770626223472,7.56186808,2044.8,2044.2,4.72002992]
[1770626223974,7.56186808,2044.8,2044.1,0.24481]
[1770626224673,7.56186808,2044.8,2044.1,4.93136077]
[1770626225973,7.56186808,2044.8,2044.1,0.24481]
[1770626228369,7.56186808,2045.2,2044.5,4.93291526]
[1770626229774,7.56186808,2045.2,2044.5,0.24477]
[1770626230280,7.56186808,2045.2,2044.5,4.95879078]
[1770626230481,7.56549951,2045.4,2044.9,0.24472]
[1770626231185,7.56186808,2045.7,2045.1,10.95765486]
[1770626231481,7.56186808,2046.0,2045.3,0.24467]
[1770626232383,7.56557508,2046.0,2045.3,0.24834464]
[1770626232982,0.003707,2046.0,2045.3,4.8709199]
[1770626233476,7.56557508,2046.0,2045.3,4.8709199]
[1770626234384,7.56557508,2046.0,2045.3,10.8899599]
[1770626234585,7.56186808,2046.3,2045.6,4.55215095]
[1770626234979,7.56186808,2046.3,2045.7,0.24463]
[1770626235180,7.56186808,2046.5,2045.7,0.24463]
[1770626235582,7.56532515,2046.5,2045.7,0.24463]
[1770626235779,7.18373046,2046.5,2045.8,4.58120286]
[1770626235984,7.18373046,2046.5,2045.9,0.2446]
[1770626236887,7.18373046,2046.5,2045.3,0.24834464]
[1770626237783,7.18373046,2046.5,2045.3,4.734631]
[1770626239283,7.18373046,2046.5,2045.4,4.47077585]
[1770626239489,7.18373046,2046.5,2045.5,4.71542585]
[1770626240484,7.18373046,2046.5,2045.6,4.43939884]
[1770626240688,7.18373046,2046.5,2045.8,4.43939884]
[1770626241090,7.18373046,2046.5,2045.7,0.24463]
[1770626241595,7.18373046,2046.5,2045.3,4.40770416]
[1770626241790,10.05356118,2046.5,2045.3,0.00367464]
[1770626242088,6.98537663,2046.1,2044.6,4.61234232]
[1770626242488,5.68263058,2046.4,2044.8,4.62128864]
[1770626242489,6.98537663,2045.9,2044.8,4.62128864]
[1770626242892,6.98537663,2045.9,2044.9,10.88622864]
[1770626243089,6.98537663,2045.9,2045.1,6.01965]
[1770626243398,6.98537663,2046.4,2045.5,0.24465]
[1770626243699,6.98537663,2046.3,2045.7,0.24463]
[1770626244092,6.9888337,2046.5,2045.7,4.81219157]
[1770626244791,6.9888337,2046.5,2045.1,4.81225157]
[1770626244994,6.9888337,2046.5,2045.1,10.83191157]
[1770626245191,6.9888337,2046.5,2045.4,4.54112136]
[1770626245696,6.9888337,2046.5,2045.3,0.24467]
[1770626245895,4.06395267,2046.4,2045.3,0.24467]
[1770626246096,6.98537663,2046.3,2045.6,4.51066215]
[1770626246298,6.98537663,2046.3,2045.7,0.24463]
[1770626246998,6.98537663,2046.3,2045.2,4.47454674]
[1770626247394,6.98537663,2046.3,2045.4,4.52552394]
[1770626248600,6.98537663,2046.3,2045.6,4.49469088]
[1770626248802,0.00345707,2046.5,2045.9,0.2446]
[1770626249002,6.9888337,2046.5,2045.9,0.2446]
[1770626249205,6.9888337,2046.5,2045.5,4.45892832]
[1770626249500,6.9888337,2046.5,2045.3,4.70363687]
[1770626250802,6.9888337,2046.5,2045.5,4.67311342]
[1770626251809,6.9888337,2046.5,2045.5,10.69153342]
[1770626252211,6.9888337,2046.5,2045.5,0.24465]
[1770626252911,6.9888337,2046.5,2045.7,4.5732053]
[1770626254310,0.00345707,2046.5,2046.0,4.27926968]
[1770626254509,6.9888337,2046.5,2045.9,0.2446]
[1770626254709,0.00345707,2046.5,2045.9,10.54116968]
[1770626254910,6.9888337,2046.5,2046.0,4.24459367]
[1770626255115,0.00345707,2046.5,2046.1,4.49309238]
[1770626255314,6.98537663,2046.7,2046.1,4.49309238]
[1770626256112,40.8,2047.2,2046.1,4.49309238]
[1770626256311,6.98537663,2047.1,2046.1,4.49309238]
[1770626257807,6.98537663,2047.1,2046.1,0.24458]
[1770626258510,6.98537663,2047.1,2046.1,4.39164674]
[1770626259311,6.98537663,2047.1,2046.1,0.24458]
[1770626259509,6.98537663,2046.9,2045.6,4.45311799]
[1770626259712,6.98537663,2046.7,2045.6,4.45311799]
[1770626260316,4.0940744,2046.6,2045.6,4.39791042]
[1770626260513,6.98537663,2046.7,2045.6,4.39791042]
[1770626260713,6.98537663,2046.8,2046.0,4.61347325]
[1770626260915,6.98537663,2046.9,2046.3,4.35233842]
[1770626261112,6.98537663,2046.9,2046.3,0.00590491]
[1770626264213,6.98537663,2046.9,2046.2,0.24457]
[1770626265116,6.98537663,2046.9,2046.2,0.25032205]
[1770626265417,6.98537663,2046.9,2046.2,4.70556248]
[1770626265916,6.98537663,2046.9,2046.2,0.25032205]
[1770626266117,6.98537663,2046.9,2046.2,4.70489059]
[1770626266516,6.98537663,2046.9,2046.2,4.44946059]
[1770626267517,6.98537663,2046.9,2046.2,4.45495365]
[1770626268614,6.98537663,2046.9,2046.2,4.40879595]
[1770626271218,7.02681507,2047.1,2046.6,0.24451]
[1770626271420,7.02681507,2047.1,2046.3,6.3217537]
[1770626271624,7.02681507,2046.9,2046.1,0.24458]
[1770626272518,7.02681507,2046.9,2046.1,0.24801691]